Workbook

Sheet прилож. № 7
A1: Приложение № 2
A2: к решению Думы Ушаковского муниципального образования от 22.02.2018 г. № 88 "О внесении изменений в решение Думы Ушаковского муниципального образования № 66 от 08.12.2017 г. "Об утверждении бюджета на 2018 г. и на плановый период 2019-2020 годов"
A4: РАСПРЕДЕЛЕНИЕ БЮДЖЕТНЫХ АССИГНОВАНИЙ ПО РАЗДЕЛАМ, ПОДРАЗДЕЛАМ, ЦЕЛЕВЫМ СТАТЬЯМ (МУНИЦИПАЛЬНЫМ ПРОГРАММАМ И НЕПРОГРАММНЫМ НАПРАВЛЕНИЯМ ДЕЯТЕЛЬНОСТИ) И ВИДАМ РАСХОДОВ КЛАССИФИКАЦИИ РАСХОДОВ БЮДЖЕТОВ НА 2018 ГОД
A6: Наименование | B6: РЗ | C6: Пр | D6: КЦСР | E6: КВР | F6: Сумма (тыс. руб)
A7: В С Е Г О | F7: =F8+F90+F95+F104+F121+F166+F181+F198 -> 83264.1
A8: ОБЩЕГОСУДАРСТВЕННЫЕ ВОПРОСЫ | B8: 01 | C8: 00 | D8: 00.0.00.00000 | E8: 000 | F8: =F9+F40+F83+F62+F32 -> 19780.3
A9: Функционирование высшего должностного лица субъекта Российской Федерации и муниципального образования | B9: 01 | C9: 02 | D9: 00.0.00.00000 | E9: 000 | F9: =F10 -> 1756.3
A10: Непрограммные расходы органов местного самоуправления | B10: 01 | C10: 02 | D10: 91.0.00.00000 | E10: 000 | F10: =F11+F18 -> 1756.3
A11: Непрограммные расходы органов местного самоуправления за счет средств местного бюджета | B11: 01 | C11: 02 | D11: 91.1.00.00000 | E11: 000 | F11: =F12 -> 1756.3
A12: Осуществление органами местного самоуправления полномочий местного значения поселения | B12: 01 | C12: 02 | D12: 91.1.00.60000 | E12: 000 | F12: =F13 -> 1756.3
A13: Обеспечение деятельности в сфере установленных функций | B13: 01 | C13: 02 | D13: 91.1.00.60001 | E13: 000 | F13: =F16+F17 -> 1756.3
A14: Расходы на выплаты персоналу в целях обеспечения выполнения функций государственными (муниципальными) органами, казенными учреждениями, органами управления государственными внебюджетными фондами | B14: 01 | C14: 02 | D14: 91.1.00.60001 | E14: 100 | F14: =F15 -> 1756.3
A15: Расходы на выплаты персоналу государственных (муниципальных) органов | B15: 01 | C15: 02 | D15: 91.1.00.60001 | E15: 120 | F15: =F16+F17 -> 1756.3
A16: Фонд оплаты труда государственных (муниципальных) органов | B16: 01 | C16: 02 | D16: 91.1.00.60001 | E16: 121 | F16: 1413.1
A17: Взносы по обязательному социальному страхованию на выплаты денежного содержания и иные выплаты работникам государственных (муниципальных) органов | B17: 01 | C17: 02 | D17: 91.1.00.60001 | E17: 129 | F17: 343.2
A18: Непрограммные расходы органов местного самоуправления за счет средств областного бюджета | B18: 01 | C18: 02 | D18: 91.1.00.60003 | E18: 000 | F18: =F19 -> 0
A19: Субсидии на выравнивание обеспеченности муниципальных образований Иркутской области по реализации ими их отдельных расходных обязательств | B19: 01 | C19: 02 | D19: 91.1.00.60004 | E19: 000 | F19: =F20 -> 0
A20: Расходы на выплаты персоналу в целях обеспечения выполнения функций государственными (муниципальными) органами, казенными учреждениями, органами управления государственными внебюджетными фондами | B20: 01 | C20: 02 | D20: 91.1.00.60005 | E20: 100 | F20: =F21 -> 0
A21: Расходы на выплаты персоналу государственных (муниципальных) органов | B21: 01 | C21: 02 | D21: 91.1.00.60006 | E21: 120 | F21: =F22+F23 -> 0
A22: Фонд оплаты труда государственных (муниципальных) органов | B22: 01 | C22: 02 | D22: 91.1.00.60007 | E22: 121 | F22: 0
A23: Взносы по обязательному социальному страхованию на выплаты денежного содержания и иные выплаты работникам государственных (муниципальных) органов | B23: 01 | C23: 02 | D23: 91.1.00.60008 | E23: 129 | F23: 0
A24: Функционирование Правительства Российской Федерации, высших исполнительных органов государственной власти субъектов РФ, местных администраций | B24: 01 | C24: 04 | D24: 91.1.00.60009 | E24: 000 | F24: =F40+F25 -> 16957.9
A25: Программные расходы | B25: 01 | C25: 04 | D25: 91.1.00.60010 | E25: 000 | F25: =F26 -> 0
A26: Муниципальная программа "Подготовка к празднованию 70-летия победы" | B26: 01 | C26: 04 | D26: 91.1.00.60011 | E26: 000 | F26: 0
A27: Реализация мероприятий муниципальной программы за счет средств местного бюджета | B27: 01 | C27: 04 | D27: 91.1.00.60012 | E27: 000 | F27: 0
A28: Мероприятия, связанные, с подготовкой к празднованию 70-летия победы | B28: 01 | C28: 04 | D28: 91.1.00.60013 | E28: 000 | F28: 0
A29: Закупка товаров, работ и услуг для обеспечения государственных (муниципальных) нужд | B29: 01 | C29: 04 | D29: 91.1.00.60014 | E29: 200 | F29: 0
A30: Иные закупки товаров, работ и услуг для обеспечения государственных (муниципальных) нужд | B30: 01 | C30: 04 | D30: 91.1.00.60015 | E30: 240 | F30: 0
A31: Прочая закупка товаров, работ и услуг для обеспечения государственных (муниципальных) нужд | B31: 01 | C31: 04 | D31: 91.1.00.60016 | E31: 244
A32: Функционирование законодательных (представительных) органов государственной власти и представительных органов муниципальных образований | B32: 01 | C32: 03 | D32: 91.1.00.00000 | E32: 000 | F32: 765.4
A33: Непрограммные расходы органов местного самоуправления за счет средств местного бюджета | B33: 01 | C33: 03 | D33: 91.1.00.00000 | E33: 000 | F33: 765.4
A34: Осуществление органами местного самоуправления полномочий местного значения поселения | B34: 01 | C34: 03 | D34: 91.1.00.60000 | E34: 000 | F34: 765.4
A35: Обеспечение деятельности в сфере установленных функций | B35: 01 | C35: 03 | D35: 91.1.00.60001 | E35: 000 | F35: 765.4
A36: Расходы на выплаты персоналу в целях обеспечения выполнения функций государственными (муниципальными) органами, казенными учреждениями, органами управления государственными внебюджетными фондами | B36: 01 | C36: 03 | D36: 91.1.00.60001 | E36: 100 | F36: 765.4
A37: Расходы на выплаты персоналу государственных (муниципальных) органов | B37: 01 | C37: 03 | D37: 91.1.00.60001 | E37: 120 | F37: =F38+F39 -> 765.4
A38: Фонд оплаты труда государственных (муниципальных) органов | B38: 01 | C38: 03 | D38: 91.1.00.60001 | E38: 121 | F38: 587.9
A39: Взносы по обязательному социальному страхованию на выплаты денежного содержания и иные выплаты работникам государственных (муниципальных) органов | B39: 01 | C39: 03 | D39: 91.1.00.60001 | E39: 129 | F39: 177.5
A40: Непрограммные расходы органов местного самоуправления | B40: 01 | C40: 04 | D40: 91.0.00.00000 | E40: 000 | F40: =F41+F62 -> 16957.9
A41: Непрограммные расходы органов местного самоуправления за счет средств местного бюджета | B41: 01 | C41: 04 | D41: 91.1.00.00000 | E41: 000 | F41: =F42 -> 16957.2
A42: Осуществление органами местного самоуправления полномочий местного значения поселения | B42: 01 | C42: 04 | D42: 91.1.00.60000 | E42: 000 | F42: =F43 -> 16957.2
A43: Обеспечение деятельности в сфере установленных функций | B43: 01 | C43: 04 | D43: 91.1.00.60001 | E43: 000 | F43: =F44+F48+F51 -> 16957.2
A44: Расходы на выплаты персоналу в целях обеспечения выполнения функций государственными (муниципальными) органами, казенными учреждениями, органами управления государственными внебюджетными фондами | B44: 01 | C44: 04 | D44: 91.1.00.60001 | E44: 100 | F44: =F45 -> 13064.2
A45: Расходы на выплаты персоналу государственных (муниципальных) органов | B45: 01 | C45: 04 | D45: 91.1.00.60001 | E45: 120 | F45: =F46+F47 -> 13064.2
A46: Фонд оплаты труда государственных (муниципальных) органов | B46: 01 | C46: 04 | D46: 91.1.00.60001 | E46: 121 | F46: 10034
A47: Взносы по обязательному социальному страхованию на выплаты денежного содержания и иные выплаты работникам государственных (муниципальных) органов | B47: 01 | C47: 04 | D47: 91.1.00.60001 | E47: 129 | F47: 3030.2
A48: Закупка товаров, работ и услуг для обеспечения государственных (муниципальных) нужд | B48: 01 | C48: 04 | D48: 91.1.00.60001 | E48: 200 | F48: =F49 -> 3854
A49: Иные закупки товаров, работ и услуг для обеспечения государственных (муниципальных) нужд | B49: 01 | C49: 04 | D49: 91.1.00.60001 | E49: 240 | F49: =F50 -> 3854
A50: Прочая закупка товаров, работ и услуг для обеспечения государственных (муниципальных) нужд | B50: 01 | C50: 04 | D50: 91.1.00.60001 | E50: 244 | F50: 3854
A51: Иные бюджетные ассигнования | B51: 01 | C51: 04 | D51: 91.1.00.60001 | E51: 800 | F51: =F52+F54+F55 -> 39
A52: Исполнение судебных актов | B52: 01 | C52: 04 | D52: 91.1.00.60001 | E52: 830 | F52: =F53 -> 0
A53: Исполнение судебных актов Российской Федерации и мировых соглашений по возмещению вреда, причиненного в результате незаконных действий (бездействия), органов местного самоуправления либо должностных лиц этих органов, а также в результате деятельности казенных учреждений | B53: 01 | C53: 04 | D53: 91.1.00.60001 | E53: 831
A54: Уплата прочих налогов, сборов | B54: 01 | C54: 04 | D54: 91.1.00.60001 | E54: 852 | F54: 16
A55: Уплата иных платежей | B55: 01 | C55: 04 | D55: 91.1.00.60001 | E55: 853 | F55: 23
B56: 01 | C56: 04 | D56: 91.1.00.60001
B57: 01 | C57: 04 | D57: 91.1.00.60001
B58: 01 | C58: 04 | D58: 91.1.00.60001
B59: 01 | C59: 04 | D59: 91.1.00.60001
B60: 01 | C60: 04 | D60: 91.1.00.60001
B61: 01 | C61: 04 | D61: 91.1.00.60001
A62: Непрограммные расходы органов местного самоуправления за счет средств областного бюджета | B62: 01 | C62: 04 | D62: 91.2.00.00000 | E62: 000 | F62: =F71+F63 -> 0.7
A63: Субсидии на выравнивание обеспеченности муниципальных образований Иркутской области по реализации ими их отдельных расходных обязательств | B63: 01 | C63: 04 | D63: 91.2.00.72600 | E63: 000 | F63: =F64+F68 -> 0
A64: Расходы на выплаты персоналу в целях обеспечения выполнения функций государственными (муниципальными) органами, казенными учреждениями, органами управления государственными внебюджетными фондами | B64: 01 | C64: 04 | D64: 91.2.00.72600 | E64: 100 | F64: =F65 -> 0
A65: Расходы на выплаты персоналу государственных (муниципальных) органов | B65: 01 | C65: 04 | D65: 91.2.00.72600 | E65: 120 | F65: =F66+F67 -> 0
A66: Фонд оплаты труда государственных (муниципальных) органов | B66: 01 | C66: 04 | D66: 91.2.00.72600 | E66: 121 | F66: 0
A67: Взносы по обязательному социальному страхованию на выплаты денежного содержания и иные выплаты работникам государственных (муниципальных) органов | B67: 01 | C67: 04 | D67: 91.2.00.72600 | E67: 129 | F67: 0
A68: Иные закупки товаров, работ и услуг для обеспечения государственных (муниципальных) нужд | B68: 01 | C68: 04 | D68: 91.2.00.72600 | E68: 200 | F68: =F69 -> 0
A69: Прочая закупка товаров, работ и услуг для обеспечения государственных (муниципальных) нужд | B69: 01 | C69: 04 | D69: 91.2.00.72600 | E69: 240 | F69: =F70 -> 0
A70: Прочая закупка товаров, работ и услуг для обеспечения государственных (муниципальных) нужд | B70: 01 | C70: 04 | D70: 91.2.00.72600 | E70: 244 | F70: 0
A71: Субвенции на осуществление областного государственного полномочия по определению перечня должностных лиц органов местного самоуправления, уполномоченных составлять протоколы об административных правонарушениях, предусмотренных отдельными законами Иркутской области об административной ответственности | B71: 01 | C71: 04 | D71: 91.2.00.73150 | E71: 000 | F71: =F74 -> 0.7
A72: Закупка товаров, работ и услуг для обеспечения государственных (муниципальных) нужд | B72: 01 | C72: 04 | D72: 91.2.00.73150 | E72: 200 | F72: =F73 -> 0.7
A73: Иные закупки товаров, работ и услуг для обеспечения государственных (муниципальных) нужд | B73: 01 | C73: 04 | D73: 91.2.00.73150 | E73: 240 | F73: =F74 -> 0.7
A74: Прочая закупка товаров, работ и услуг для обеспечения государственных (муниципальных) нужд | B74: 01 | C74: 04 | D74: 91.2.00.73150 | E74: 244 | F74: 0.7
A75: Обеспечение проведения выборов и референдумов | B75: 01 | C75: 07 | D75: 00.0.00.00000 | E75: 000 | F75: =F76 -> 0
A76: Непрограммные расходы органов местного самоуправления | B76: 01 | C76: 07 | D76: 91.0.00.00000 | E76: 000 | F76: 0
A77: Непрограммные расходы органов местного самоуправления за счет средств местного бюджета | B77: 01 | C77: 07 | D77: 91.1.00.00000 | E77: 000 | F77: 0
A78: Осуществление органами местного самоуправления полномочий местного значения поселения | B78: 01 | C78: 07 | D78: 91.1.00.60000 | E78: 000 | F78: 0
A79: Проведения выборов и референдумов | B79: 01 | C79: 07 | D79: 91.1.00.60003 | E79: 000 | F79: 0
A80: Закупка товаров, работ и услуг для обеспечения государственных (муниципальных) нужд | B80: 01 | C80: 07 | D80: 91.1.00.60003 | E80: 200 | F80: 0
A81: Иные закупки товаров, работ и услуг для обеспечения государственных (муниципальных) нужд | B81: 01 | C81: 07 | D81: 91.1.00.60003 | E81: 240 | F81: 0
A82: Прочая закупка товаров, работ и услуг для обеспечения государственных (муниципальных) нужд | B82: 01 | C82: 07 | D82: 91.1.00.60003 | E82: 244 | F82: 0
A83: Резервные фонды | B83: 01 | C83: 11 | D83: 00.0.00.00000 | E83: 000 | F83: =F84 -> 300
A84: Непрограммные расходы органов местного самоуправления | B84: 01 | C84: 11 | D84: 91.0.00.00000 | E84: 000 | F84: 300
A85: Непрограммные расходы органов местного самоуправления за счет средств местного бюджета | B85: 01 | C85: 11 | D85: 91.1.00.00000 | E85: 000 | F85: =F86 -> 300
A86: Осуществление органами местного самоуправления полномочий местного значения поселения | B86: 01 | C86: 11 | D86: 91.1.00.60000 | E86: 000 | F86: 300
A87: Резервный фонд администрации муниципального образования | B87: 01 | C87: 11 | D87: 91.1.00.60004 | E87: 000 | F87: 300
A88: Иные бюджетные ассигнования | B88: 01 | C88: 11 | D88: 91.1.00.60004 | E88: 800 | F88: 300
A89: Резервные средства | B89: 01 | C89: 11 | D89: 91.1.00.60004 | E89: 870 | F89: 300
A90: НАЦИОНАЛЬНАЯ ОБОРОНА | B90: 02 | C90: 00 | D90: 00.0.00.00000 | E90: 000 | F90: =F91+F92+F93 -> 327.2
A91: Мобилизационная и вневойсковая подготовка | B91: 02 | C91: 03 | D91: 91.3.00.51180 | E91: 121 | F91: 228.3
A92: Мобилизационная и вневойсковая подготовка | B92: 02 | C92: 03 | D92: 91.3.00.51180 | E92: 129 | F92: 68.9
A93: Закупка товаров, работ и услуг для обеспечения государственных (муниципальных) нужд | B93: 02 | C93: 03 | D93: 91.3.00.51180 | E93: 200 | F93: 30
A94: Иные закупки товаров, работ и услуг для обеспечения государственных (муниципальных) нужд | B94: 02 | C94: 03 | D94: 91.3.00.51180 | E94: 240 | F94: 30
A95: НАЦИОНАЛЬНАЯ БЕЗОПАСНОСТЬ И ПРАВООХРАНИТЕЛЬНАЯ ДЕЯТЕЛЬНОСТЬ | B95: 03 | C95: 00 | D95: 00.0.00.00000 | E95: 000 | F95: =F96 -> 350
A96: Обеспечение пожарной безопасности | B96: 03 | C96: 10 | D96: 00.0.00.00000 | E96: 000 | F96: 350
A97: Непрограммные расходы органов местного самоуправления | B97: 03 | C97: 10 | D97: 91.0.00.00000 | E97: 000 | F97: 350
A98: Непрограммные расходы органов местного самоуправления за счет средств местного бюджета | B98: 03 | C98: 10 | D98: 91.1.00.00000 | E98: 000 | F98: 350
A99: Осуществление органами местного самоуправления полномочий местного значения поселения | B99: 03 | C99: 10 | D99: 91.1.00.60000 | E99: 000 | F99: 350
A100: Реализация других функций, связанных с обеспечением национальной безопасности и правоохранительной деятельности | B100: 03 | C100: 10 | D100: 91.1.00.60007 | E100: 000 | F100: 350
A101: Закупка товаров, работ и услуг для обеспечения государственных (муниципальных) нужд | B101: 03 | C101: 10 | D101: 91.1.00.60007 | E101: 200 | F101: 350
A102: Иные закупки товаров, работ и услуг для обеспечения государственных (муниципальных) нужд | B102: 03 | C102: 10 | D102: 91.1.00.60007 | E102: 240 | F102: 350
A103: Прочая закупка товаров, работ и услуг для обеспечения государственных (муниципальных) нужд | B103: 03 | C103: 10 | D103: 91.1.00.60007 | E103: 244 | F103: 350
A104: НАЦИОНАЛЬНАЯ ЭКОНОМИКА | B104: 04 | C104: 00 | D104: 00.0.00.00000 | E104: 000 | F104: =F105+F113 -> 20326.9
A105: Дорожное хозяйство (дорожные фонды) | B105: 04 | C105: 09 | D105: 00.0.00.00000 | E105: 000 | F105: =F106 -> 7593.7
A106: Непрограммные расходы органов местного самоуправления | B106: 04 | C106: 09 | D106: 91.0.00.00000 | E106: 000 | F106: 7593.7
A107: Непрограммные расходы органов местного самоуправления за счет средств местного бюджета | B107: 04 | C107: 09 | D107: 91.1.00.00000 | E107: 000 | F107: 7593.7
A108: Осуществление органами местного самоуправления полномочий местного значения поселения | B108: 04 | C108: 09 | D108: 91.1.00.60000 | E108: 000 | F108: 7593.7
A109: Иные мероприятия и сфере установленных функций | B109: 04 | C109: 09 | D109: 91.1.00.60011 | E109: 000 | F109: 7593.7
A110: Закупка товаров, работ и услуг для обеспечения государственных (муниципальных) нужд | B110: 04 | C110: 09 | D110: 91.1.00.60011 | E110: 200 | F110: 7593.7
A111: Иные закупки товаров, работ и услуг для обеспечения государственных (муниципальных) нужд | B111: 04 | C111: 09 | D111: 91.1.00.60011 | E111: 240 | F111: 7593.7
A112: Прочая закупка товаров, работ и услуг для обеспечения государственных (муниципальных) нужд | B112: 04 | C112: 09 | D112: 91.1.00.60011 | E112: 244 | F112: 7593.7
A113: Другие вопросы в области национальной экономике | B113: 04 | C113: 12 | D113: 00.0.00.00000 | E113: 000 | F113: =F114 -> 12733.2
A114: Непрограммные расходы органов местного самоуправления | B114: 04 | C114: 12 | D114: 91.0.00.00000 | E114: 000 | F114: 12733.2
A115: Непрограммные расходы органов местного самоуправления за счет средств местного бюджета | B115: 04 | C115: 12 | D115: 91.1.00.00000 | E115: 000 | F115: 12733.2
A116: Осуществление органами местного самоуправления полномочий местного значения поселения | B116: 04 | C116: 12 | D116: 91.1.00.60000 | E116: 000 | F116: 12733.2
A117: Иные мероприятия и сфере установленных функций | B117: 04 | C117: 12 | D117: 91.1.00.60011 | E117: 000 | F117: 12733.2
A118: Закупка товаров, работ и услуг для обеспечения государственных (муниципальных) нужд | B118: 04 | C118: 12 | D118: 91.1.00.60011 | E118: 200 | F118: 12733.2
A119: Иные закупки товаров, работ и услуг для обеспечения государственных (муниципальных) нужд | B119: 04 | C119: 12 | D119: 91.1.00.60011 | E119: 240 | F119: 12733.2
A120: Прочая закупка товаров, работ и услуг для обеспечения государственных (муниципальных) нужд | B120: 04 | C120: 12 | D120: 91.1.00.60011 | E120: 244 | F120: =2000+10733.2 -> 12733.2
A121: ЖИЛИЩНО-КОММУНАЛЬНОЕ ХОЗЯЙСТВО | B121: 05 | C121: 00 | D121: 00.0.00.00000 | E121: 000 | F121: =F122+F130+F138 -> 24124.6
A122: Жилищное хозяйство | B122: 05 | C122: 01 | D122: 00.0.00.00000 | E122: 000 | F122: =F123 -> 6040
A123: Непрограммные расходы органов местного самоуправления | B123: 05 | C123: 01 | D123: 91.0.00.00000 | E123: 000 | F123: 6040
A124: Непрограммные расходы органов местного самоуправления за счет средств местного бюджета | B124: 05 | C124: 01 | D124: 91.1.00.00000 | E124: 000 | F124: 6040
A125: Осуществление органами местного самоуправления полномочий местного значения поселения | B125: 05 | C125: 01 | D125: 91.1.00.60000 | E125: 000 | F125: 6040
A126: Текущий ремонт в сфере установленных функций | B126: 05 | C126: 01 | D126: 91.1.00.60009 | E126: 000 | F126: 6040
A127: Закупка товаров, работ и услуг для обеспечения государственных (муниципальных) нужд | B127: 05 | C127: 01 | D127: 91.1.00.60009 | E127: 200 | F127: 6040
A128: Иные закупки товаров, работ и услуг для обеспечения государственных (муниципальных) нужд | B128: 05 | C128: 01 | D128: 91.1.00.60009 | E128: 240 | F128: 6040
A129: Прочая закупка товаров, работ и услуг для обеспечения государственных (муниципальных) нужд | B129: 05 | C129: 01 | D129: 91.1.00.60009 | E129: 244 | F129: =40+6000 -> 6040
A130: Коммунальное хозяйство | B130: 05 | C130: 02 | D130: 00.0.00.00000 | E130: 000 | F130: =F131 -> 8400
A131: Непрограммные расходы органов местного самоуправления | B131: 05 | C131: 02 | D131: 91.0.00.00000 | E131: 000 | F131: =F133 -> 8400
A132: Непрограммные расходы органов местного самоуправления за счет средств местного бюджета | B132: 05 | C132: 02 | D132: 91.1.00.00000 | E132: 000 | F132: =F133 -> 8400
A133: Осуществление органами местного самоуправления полномочий местного значения поселения | B133: 05 | C133: 02 | D133: 91.1.00.60000 | E133: 000 | F133: =F134 -> 8400
A134: Иные мероприятия и сфере установленных функций | B134: 05 | C134: 02 | D134: 91.1.00.60011 | E134: 000 | F134: =F135 -> 8400
A135: Закупка товаров, работ и услуг для обеспечения государственных (муниципальных) нужд | B135: 05 | C135: 02 | D135: 91.1.00.60011 | E135: 200 | F135: =F136 -> 8400
A136: Иные закупки товаров, работ и услуг для обеспечения государственных (муниципальных) нужд | B136: 05 | C136: 02 | D136: 91.1.00.60011 | E136: 240 | F136: =F137 -> 8400
A137: Прочая закупка товаров, работ и услуг для обеспечения государственных (муниципальных) нужд | B137: 05 | C137: 02 | D137: 91.1.00.60011 | E137: 244 | F137: =7400+1000 -> 8400
A138: Благоустройство | B138: 05 | C138: 03 | D138: 00.0.00.00000 | E138: 000 | F138: =F139 -> 9684.6
A139: Непрограммные расходы органов местного самоуправления | B139: 05 | C139: 03 | D139: 91.0.00.00000 | E139: 000 | F139: =F140 -> 9684.6
A140: Непрограммные расходы органов местного самоуправления за счет средств местного бюджета | B140: 05 | C140: 03 | D140: 91.1.00.00000 | E140: 000 | F140: =F141 -> 9684.6
A141: Осуществление органами местного самоуправления полномочий местного значения поселения | B141: 05 | C141: 03 | D141: 91.1.00.60000 | E141: 000 | F141: =F142 -> 9684.6
A142: Мероприятия в области жилищно-коммунального хозяйства | B142: 05 | C142: 03 | D142: 91.1.00.60100 | E142: 000 | F142: =F143+F149 -> 9684.6
A143: Уличное освещение | B143: 05 | C143: 03 | D143: 91.1.00.60101 | E143: 000 | F143: =F144+F147 -> 1962.2
A144: Закупка товаров, работ и услуг для обеспечения государственных (муниципальных) нужд | B144: 05 | C144: 03 | D144: 91.1.00.60101 | E144: 200 | F144: =F145 -> 1962.2
A145: Иные закупки товаров, работ и услуг для обеспечения государственных (муниципальных) нужд | B145: 05 | C145: 03 | D145: 91.1.00.60101 | E145: 240 | F145: =F146 -> 1962.2
A146: Прочая закупка товаров, работ и услуг для обеспечения государственных (муниципальных) нужд | B146: 05 | C146: 03 | D146: 91.1.00.60101 | E146: 244 | F146: =1362.2+600 -> 1962.2
A147: Иные бюджетные ассигнования | B147: 05 | C147: 03 | D147: 91.1.00.60101 | E147: 800 | F147: =F148 -> 0
A148: Уплата иных платежей | B148: 05 | C148: 03 | D148: 91.1.00.60001 | E148: 853 | F148: 0
A149: Прочие мероприятия по благоустройству городских округов и поселений | B149: 05 | C149: 03 | D149: 91.1.00.60105 | E149: 000 | F149: =F150 -> 7722.4
A150: Закупка товаров, работ и услуг для обеспечения государственных (муниципальных) нужд | B150: 05 | C150: 03 | D150: 91.1.00.60105 | E150: 200 | F150: =F151 -> 7722.4
A151: Иные закупки товаров, работ и услуг для обеспечения государственных (муниципальных) нужд | B151: 05 | C151: 03 | D151: 91.1.00.60105 | E151: 240 | F151: =F152 -> 7722.4
A152: Прочая закупка товаров, работ и услуг для обеспечения государственных (муниципальных) нужд | B152: 05 | C152: 03 | D152: 91.1.00.60105 | E152: 244 | F152: =7472.4+250 -> 7722.4
A153: Реализация мероприятий перечня проектов народных инициатив за счет средств местного бюджета | B153: 05 | C153: 03 | D153: 91.1.00.S2370 | E153: 000 | F153: =F154 -> 0
A154: Закупка товаров, работ и услуг для обеспечения государственных (муниципальных) нужд | B154: 05 | C154: 03 | D154: 91.1.00.S2370 | E154: 200 | F154: =F155 -> 0
A155: Иные закупки товаров, работ и услуг для обеспечения государственных (муниципальных) нужд | B155: 05 | C155: 03 | D155: 91.1.00.S2370 | E155: 240 | F155: =F156 -> 0
A156: Прочая закупка товаров, работ и услуг для обеспечения государственных (муниципальных) нужд | B156: 05 | C156: 03 | D156: 91.1.00.S2370 | E156: 244
A157: Непрограммные расходы органов местного самоуправления за счет средств областного бюджета | B157: 05 | C157: 03 | D157: 91.2.00.00000 | E157: 000 | F157: =F158+F162 -> 0
A158: Субсидии на реализацию мероприятий перечня проектов народных инициатив за счет областного бюджета | B158: 05 | C158: 03 | D158: 91.2.00.72370 | E158: 000 | F158: =F159 -> 0
A159: Закупка товаров, работ и услуг для обеспечения государственных (муниципальных) нужд | B159: 05 | C159: 03 | D159: 91.2.00.72370 | E159: 200 | F159: =F160 -> 0
A160: Иные закупки товаров, работ и услуг для обеспечения государственных (муниципальных) нужд | B160: 05 | C160: 03 | D160: 91.2.00.72370 | E160: 240 | F160: =F161 -> 0
A161: Прочая закупка товаров, работ и услуг для обеспечения государственных (муниципальных) нужд | B161: 05 | C161: 03 | D161: 91.2.00.72370 | E161: 244
A162: Субсидии на выравнивание обеспеченности муниципальных образований Иркутской области по реализации ими их отдельных расходных обязательств | B162: 05 | C162: 03 | D162: 91.2.00.72600 | E162: 000 | F162: =F163 -> 0
A163: Закупка товаров, работ и услуг для обеспечения государственных (муниципальных) нужд | B163: 05 | C163: 03 | D163: 91.2.00.72600 | E163: 200 | F163: =F164 -> 0
A164: Иные закупки товаров, работ и услуг для обеспечения государственных (муниципальных) нужд | B164: 05 | C164: 03 | D164: 91.2.00.72600 | E164: 240 | F164: =F165 -> 0
A165: Прочая закупка товаров, работ и услуг для обеспечения государственных (муниципальных) нужд | B165: 05 | C165: 03 | D165: 91.2.00.72600 | E165: 244
A166: КУЛЬТУРА, КИНЕМАТОГРАФИЯ | B166: 08 | C166: 00 | D166: 00.0.00.00000 | E166: 000 | F166: =F167 -> 17851.2
A167: КУЛЬТУРА | B167: 08 | C167: 01 | D167: 91.0.00.00000 | E167: 000 | F167: =F168+F174 -> 17851.2
A168: Непрограммные расходы органов местного самоуправления | B168: 08 | C168: 01 | D168: 91.1.00.00000 | E168: 000 | F168: =F169 -> 13878
A169: Осуществление органами местного самоуправления полномочий местного значения поселения | B169: 08 | C169: 01 | D169: 91.1.00.60002 | E169: 000 | F169: =F170 -> 13878
A170: Расходы на выплату персоналу в целях обеспечения выполнения функций государственными (муниципальными) органами, казенными учреждениями, органами управления государственными внебюджетными фондами | B170: 08 | C170: 01 | D170: 91.1.00.60002 | E170: 100 | F170: =F171 -> 13878
A171: Расходы на выплату персоналу казенных учреждений | B171: 08 | C171: 01 | D171: 91.1.00.60002 | E171: 110 | F171: =F172+F173 -> 13878
A172: Фонд оплаты труда казенных учреждений и взносы по обязательному социальному страхованию | B172: 08 | C172: 01 | D172: 91.1.00.60002 | E172: 111 | F172: 10659
A173: по оплате труда работников и иные выплаты работникам учреждений | B173: 08 | C173: 01 | D173: 91.1.00.60002 | E173: 119 | F173: 3219
A174: Непрограммные расходы органов местного самоуправления | B174: 08 | C174: 01 | D174: 91.0.00.00000 | E174: 000 | F174: =F175 -> 3973.2
A175: Непрограммные расходы органов местного самоуправления за счет средств местного бюджета | B175: 08 | C175: 01 | D175: 91.1.00.00000 | E175: 000 | F175: 3973.2
A176: Осуществление органами местного самоуправления полномочий местного значения поселения | B176: 08 | C176: 01 | D176: 91.1.00.60000 | E176: 000 | F176: 3973.2
A177: Обеспечение деятельности в сфере установленных функции бюджетных, автономных и казенных учреждений | B177: 08 | C177: 01 | D177: 91.1.00.60002 | E177: 000 | F177: 3973.2
A178: Закупка товаров, работ и услуг для обеспечения государственных (муниципальных) нужд | B178: 08 | C178: 01 | D178: 91.1.00.60002 | E178: 200 | F178: 3973.2
A179: Иные закупки товаров, работ и услуг для обеспечения государственных (муниципальных) нужд | B179: 08 | C179: 01 | D179: 91.1.00.60002 | E179: 240 | F179: 3973.2
A180: Прочая закупка товаров, работ и услуг для обеспечения государственных (муниципальных) нужд | B180: 08 | C180: 01 | D180: 91.1.00.60002 | E180: 244 | F180: =3373.2+600 -> 3973.2
A181: СОЦИАЛЬНАЯ ПОЛИТИКА | B181: 10 | C181: 00 | D181: 00.0.00.00000 | E181: 000 | F181: =F182 -> 244.7
A182: Пенсионное обеспечение | B182: 10 | C182: 01 | D182: 00.0.00.00000 | E182: 000 | F182: 244.7
A183: Непрограммные расходы органов местного самоуправления | B183: 10 | C183: 01 | D183: 91.0.00.00000 | E183: 000 | F183: 244.7
A184: Непрограммные расходы органов местного самоуправления за счет средств местного бюджета | B184: 10 | C184: 01 | D184: 91.1.00.00000 | E184: 000 | F184: 244.7
A185: Осуществление органами местного самоуправления полномочий местного значения поселения | B185: 10 | C185: 01 | D185: 91.1.00.60000 | E185: 000 | F185: 244.7
A186: Доплаты к пенсиям муниципальных служащих | B186: 10 | C186: 01 | D186: 91.1.00.60018 | E186: 000 | F186: 244.7
A187: Социальное обеспечение и иные выплаты населению | B187: 10 | C187: 01 | D187: 91.1.00.60018 | E187: 300 | F187: 244.7
A188: Публичные нормативные социальные выплаты гражданам | B188: 10 | C188: 01 | D188: 91.1.00.60018 | E188: 310 | F188: 244.7
A189: Иные пенсии, социальные доплаты к пенсиям | B189: 10 | C189: 01 | D189: 91.1.00.60018 | E189: 312 | F189: 244.7
A190: ФИЗИЧЕСКАЯ КУЛЬТУРА И СПОРТ | B190: 11 | C190: 00 | D190: 00.0.00.00000 | E190: 000 | F190: =F191 -> 
A191: Другие вопросы в области физической культуры и спорта | B191: 11 | C191: 05 | D191: 00.0.00.00000 | E191: 000
A192: Непрограммные расходы органов местного самоуправления | B192: 11 | C192: 05 | D192: 91.0.00.00000 | E192: 000
A193: Непрограммные расходы органов местного самоуправления за счет средств местного бюджета | B193: 11 | C193: 05 | D193: 91.1.00.00000 | E193: 000
A194: Осуществление органами местного самоуправления полномочий местного значения поселения | B194: 11 | C194: 05 | D194: 91.1.00.60000 | E194: 000
A195: Обеспечение деятельности в сфере установленных функции бюджетных, автономных и казенных учреждений | B195: 11 | C195: 05 | D195: 91.1.00.60002 | E195: 000
A196: Закупка товаров, работ и услуг для обеспечения государственных (муниципальных) нужд | B196: 11 | C196: 05 | D196: 91.1.00.60002 | E196: 200
A197: Иные закупки товаров, работ и услуг для обеспечения государственных (муниципальных) нужд | B197: 11 | C197: 05 | D197: 91.1.00.60002 | E197: 240 | F197: =#REF! -> 
A198: МЕЖБЮДЖЕТНЫЕ ТРАНСФЕРТЫ БЮДЖЕТАМ БЮДЖЕТНОЙ СИСТЕМЫ РФ | B198: 14 | C198: 00 | D198: 00.0.00.00000 | E198: 000 | F198: =F199 -> 259.2
A199: Прочие межбюджетные трансферты общего характера | B199: 14 | C199: 03 | D199: 00.0.00.00000 | E199: 000 | F199: 259.2
A200: Непрограммые расходы органов местного самоуправления | B200: 14 | C200: 03 | D200: 91.0.00.00000 | E200: 000 | F200: 259.2
A201: Непрограммые расходы органов местного самоуправления за счет средств местного бюджета | B201: 14 | C201: 03 | D201: 91.1.00.00000 | E201: 000 | F201: 259.2
A202: Осуществление органами местного самоуправления полномочий местного значения поселения | B202: 14 | C202: 03 | D202: 91.1.00.60000 | E202: 000 | F202: 259.2
... 10 more rows
